{"text_format":"2","workbook":"xlsx","n_sheets":1,"sheets":["Sheet1"],"not_rendered":{"charts":0,"images":0,"macros":0,"external_links":0,"defined_names":1,"comments":0,"pivot_tables":0},"unopened":[],"bounds":{"document_bytes":16777216,"sheet_cells":100000,"run_cost":"one","rows_first":2000,"rows_last":500,"rows_between":2000,"halvings":0,"cell_chars":16384,"cell_head_chars":4096},"cells_cut":0,"cells_raw":0,"read":"whole","date_system":"1900"}

{"sheet":"Sheet1","index":0,"n_rows":75,"n_cols":31,"rows_kept":75,"cut":false,"hidden":false,"merged":[[3,0,3,28],[5,30,6,30],[5,1,6,1],[5,0,6,0],[4,2,4,15],[5,2,5,11],[5,12,5,15],[5,16,5,25],[5,26,5,29],[4,16,4,29],[73,0,74,0],[8,0,10,0],[11,0,13,0],[14,0,32,0],[33,0,36,0],[37,0,38,0],[39,0,47,0],[48,0,55,0],[56,0,57,0],[68,0,69,0],[70,0,72,0],[58,0,65,0]]}
[]
["国家公務員採用一般職試験（大卒程度試験）・（高卒者試験）各試験区分からの採用実績（２０２３年度・２０２２年度）"]
[]
["※　東海北陸地域（岐阜県、静岡県、愛知県、三重県、富山県、石川県、福井県）での採用実績がある機関のみ掲載しております。「官庁名」の後に（　）書きを付している機関は、当該県で採用される可能性があります（技術系区分については、東海北陸地域以外で採用される可能性もあります。）。なお、（東京都）（茨城県）と記載のある機関は、東海北陸地域に官庁はありますが、採用は東京本省等で一括で行われます（採用後、東海北陸地域へ異動になる可能性があります。）。詳細は、各機関のHPをご確認ください。"]
[null,null,"２０２３年度採用",{"$nulls":13},"２０２２年度採用"]
["府省等名","官庁名","一般職試験（大卒程度試験）試験区分",{"$nulls":9},"一般職試験（高卒者試験）試験区分",null,null,null,"一般職試験（大卒程度試験）試験区分",{"$nulls":9},"一般職試験（高卒者試験）試験区分",null,null,null,"官庁名"]
[null,null,"行政\n東海北陸","デジタル\n・電気\n・電子","機械","土木","建築","物理","化学","農学","農業\n農村工学","林学","事務\n東海北陸","技術\n東海北陸","農業土木","林業","行政\n東海北陸","デジタル\n・電気\n・電子","機械","土木","建築","物理","化学","農学","農業\n農村工学","林学","事務\n東海北陸","技術\n東海北陸","農業土木","林業"]
["人事院","人事院中部事務局","○",{"$nulls":27},{"$f":"B8","v":"人事院中部事務局"}]
["内閣府","公正取引委員会事務総局中部事務所",{"$nulls":28},"公正取引委員会事務総局中部事務所"]
[null,"関東管区警察局（静岡県）",{"$nulls":7},"○",null,null,null,"○",{"$nulls":7},"○","○","○",{"$nulls":6},"関東管区警察局（静岡県）"]
[null,"中部管区警察局","○","○","○","○",{"$nulls":7},"○",null,null,"○","○",null,null,null,"○","○","○",{"$nulls":6},"中部管区警察局"]
["総務省","中部管区行政評価局","○",{"$nulls":9},"○",null,null,null,"○",{"$nulls":13},"中部管区行政評価局"]
[null,"東海総合通信局","○",{"$nulls":13},"○",{"$nulls":13},"東海総合通信局"]
[null,"北陸総合通信局","○","○",{"$nulls":4},"○",{"$nulls":7},"○",{"$nulls":13},"北陸総合通信局"]
["法務省","名古屋高等検察庁",{"$nulls":28},"名古屋高等検察庁"]
[null,"岐阜地方検察庁","○",{"$nulls":9},"○",null,null,null,"○",{"$nulls":13},"岐阜地方検察庁"]
[null,"静岡地方検察庁","○",{"$nulls":9},"○",null,null,null,"○",{"$nulls":9},"○",null,null,null,"静岡地方検察庁"]
[null,"名古屋地方検察庁","○",{"$nulls":9},"○",null,null,null,"○",{"$nulls":9},"○",null,null,null,"名古屋地方検察庁"]
[null,"津地方検察庁","○",{"$nulls":9},"○",null,null,null,"○",{"$nulls":9},"○",null,null,null,"津地方検察庁"]
[null,"富山地方検察庁","○",{"$nulls":9},"○",null,null,null,"○",{"$nulls":9},"○",null,null,null,"富山地方検察庁"]
[null,"金沢地方検察庁","○",{"$nulls":9},"○",null,null,null,"○",{"$nulls":13},"金沢地方検察庁"]
[null,"福井地方検察庁","○",{"$nulls":9},"○",null,null,null,"○",{"$nulls":13},"福井地方検察庁"]
[null,"名古屋矯正管区",{"$nulls":28},"名古屋矯正管区"]
[null,"中部地方更生保護委員会・保護観察所",{"$nulls":10},"○",null,null,null,"○",{"$nulls":13},"中部地方更生保護委員会・保護観察所"]
[null,"岐阜地方法務局","○",{"$nulls":13},"○",{"$nulls":13},"岐阜地方法務局"]
[null,"静岡地方法務局","○",{"$nulls":9},"○",null,null,null,"○",{"$nulls":9},"○",null,null,null,"静岡地方法務局"]
[null,"名古屋法務局","○",{"$nulls":13},"○",{"$nulls":9},"○",null,null,null,"名古屋法務局"]
[null,"津地方法務局","○",{"$nulls":9},"○",null,null,null,"○",{"$nulls":9},"○",null,null,null,"津地方法務局"]
[null,"富山地方法務局","○",{"$nulls":27},"富山地方法務局"]
[null,"金沢地方法務局","○",{"$nulls":13},"○",{"$nulls":9},"○",null,null,null,"金沢地方法務局"]
[null,"福井地方法務局","○",{"$nulls":13},"○",{"$nulls":9},"○",null,null,null,"福井地方法務局"]
[null,"名古屋出入国在留管理局","○",{"$nulls":9},"○",null,null,null,"○",{"$nulls":9},"○",null,null,null,"名古屋出入国在留管理局"]
[null,"中部公安調査局","○",{"$nulls":9},"○",null,null,null,"○",{"$nulls":13},"中部公安調査局"]
["財務省","東海財務局",{"$nulls":18},"○",{"$nulls":9},"東海財務局"]
[null,"北陸財務局",{"$nulls":28},"北陸財務局"]
[null,"名古屋税関","○",{"$nulls":5},"○",null,null,null,"○","○",null,null,"○",{"$nulls":5},"○",null,null,null,"○","○",null,null,"名古屋税関"]
[null,"大阪税関（石川県）","○",{"$nulls":9},"○",null,null,null,"○",{"$nulls":9},"○",null,null,null,"大阪税関（石川県）"]
["国税庁","名古屋国税（専門職試験からの採用）",{"$nulls":28},"名古屋国税（専門職試験からの採用）"]
[null,"金沢国税局（専門職試験からの採用）",{"$nulls":28},{"$f":"B39","v":"金沢国税局（専門職試験からの採用）"}]
["厚生労働省","名古屋検疫所","○",{"$nulls":9},"○",null,null,null,"○",{"$nulls":13},"名古屋検疫所"]
[null,"東海北陸厚生局 ","○",{"$nulls":13},"○",{"$nulls":13},"東海北陸厚生局 "]
[null,"岐阜労働局","○",{"$nulls":9},"○",null,null,null,"○",{"$nulls":9},"○",null,null,null,"岐阜労働局"]
[null,"静岡労働局","○",{"$nulls":9},"○",null,null,null,"○",{"$nulls":9},"○",null,null,null,"静岡労働局"]
[null,"愛知労働局","○",{"$nulls":9},"○",null,null,null,"○",{"$nulls":9},"○",null,null,null,"愛知労働局"]
[null,"三重労働局","○",{"$nulls":9},"○",null,null,null,"○",{"$nulls":9},"○",null,null,null,"三重労働局"]
[null,"富山労働局","○",{"$nulls":9},"○",null,null,null,"○",{"$nulls":9},"○",null,null,null,"富山労働局"]
[null,"石川労働局","○",{"$nulls":13},"○",{"$nulls":13},"石川労働局"]
[null,"福井労働局",{"$nulls":10},"○",null,null,null,"○",{"$nulls":13},"福井労働局"]
["農林水産省","名古屋植物防疫所",{"$nulls":7},"○",{"$nulls":12},"○","○",{"$nulls":6},"名古屋植物防疫所"]
[null,"動物検疫所中部空港支所",{"$nulls":28},"動物検疫所中部空港支所"]
[null,"関東農政局",{"$nulls":28},"関東農政局"]
[null,"東海農政局","○",{"$nulls":6},"○","○",null,null,null,"○",null,"○",{"$nulls":6},"○","○",null,null,null,"○",null,"東海農政局"]
[null,"北陸農政局","○",null,null,"○",null,null,null,"○","○",null,null,null,"○",null,"○",{"$nulls":6},"○","○",null,null,null,"○",null,"北陸農政局"]
[null,"関東森林管理局（静岡県）",{"$nulls":9},"○",{"$nulls":4},"○",{"$nulls":13},"関東森林管理局（静岡県）"]
[null,"中部森林管理局（岐阜県、愛知県、富山県）",{"$nulls":9},"○","○",{"$nulls":6},"○",{"$nulls":5},"○","○",null,null,null,"中部森林管理局（岐阜県、愛知県、富山県）"]
[null,"近畿中国森林管理局（三重県、石川県、福井県）",{"$nulls":9},"○",null,null,"○","○",{"$nulls":9},"○",{"$nulls":4},"近畿中国森林管理局（三重県、石川県、福井県）"]
["経済産業省","中部経済産業局","○",null,null,"○",null,null,"○",{"$nulls":7},"○",null,"○","○",{"$nulls":10},"中部経済産業局"]
[null,"中部近畿産業保安監督部",{"$nulls":7},"○",{"$nulls":9},"○",{"$nulls":10},"中部近畿産業保安監督部"]
["国土交通省","国土地理院（茨城県）",null,null,null,"○","○","○",null,"○","○","○",{"$nulls":6},"○","○",null,"○",null,null,"○","○",{"$nulls":4},"国土地理院（茨城県）"]
[null,"中部地方整備局（岐阜県、静岡県、愛知県、三重県）","○","○","○","○","○","○","○","○",null,"○","○","○","○","○","○","○","○","○","○","○","○","○",null,"○","○","○","○",null,"中部地方整備局（岐阜県、静岡県、愛知県、三重県）"]
[null,"北陸地方整備局（岐阜県、富山県、石川県、福井県）","○","○",null,"○",null,null,"○",null,null,null,"○","○",null,null,"○",null,null,"○","○",null,"○",null,null,null,"○","○","○",null,"北陸地方整備局（岐阜県、富山県、石川県、福井県）"]
[null,"近畿地方整備局（三重県、福井県）",null,null,null,"○",null,"○","○","○",null,"○","○",null,"○",null,null,"○",null,"○",{"$nulls":6},"○",null,null,null,"近畿地方整備局（三重県、福井県）"]
[null,"中部運輸局","○","○",null,"○",null,"○",{"$nulls":5},"○",null,null,"○",{"$nulls":9},"○","○",null,null,"中部運輸局"]
[null,"北陸信越運輸局（富山県、石川県）","○","○",{"$nulls":8},"○",null,null,null,"○",{"$nulls":9},"○","○",null,null,"北陸信越運輸局（富山県、石川県）"]
[null,"東京航空局（静岡県）",{"$nulls":28},"東京航空局（静岡県）"]
[null,"大阪航空局（愛知県、富山県、石川県）",null,null,"○",{"$nulls":25},"大阪航空局（愛知県、富山県、石川県）"]
["気象庁","東京管区気象台（東海北陸７県）",null,null,null,"○",null,"○","○",{"$nulls":4},"○",{"$nulls":5},"○",null,"○","○",{"$nulls":7},"東京管区気象台（東海北陸７県）"]
["海上保安庁","第四管区海上保安本部（愛知県、三重県）",{"$nulls":24},"○",null,null,null,"第四管区海上保安本部（愛知県、三重県）"]
["環境省","中部地方環境事務所\n※令和７年度から採用予定",{"$nulls":28},{"$f":"B69","v":"中部地方環境事務所\n※令和７年度から採用予定"}]
[null,"原子力規制庁（東京都）",null,"○",{"$nulls":4},"○",{"$nulls":12},"○","○",{"$nulls":7},"原子力規制庁（東京都）"]
["防衛省","陸上自衛隊","○",{"$nulls":13},"○",null,null,"○",{"$nulls":6},"○","○",null,null,"陸上自衛隊"]
[null,"航空自衛隊","○",{"$nulls":9},"○",null,null,null,"○",{"$nulls":9},"○",null,null,null,"航空自衛隊"]
[null,"東海防衛支局","○",{"$nulls":9},"○","○",null,null,"○",null,null,"○",{"$nulls":6},"○",null,null,null,"東海防衛支局"]
["独立行政法人\n(行政執行法人)","農林水産消費安全技術センター\n名古屋センター",{"$nulls":28},"農林水産消費安全技術センター\n名古屋センター"]
[null,"製品評価技術基盤機構（東京都）",{"$nulls":6},"○","○",null,"○",{"$nulls":5},"○","○",null,null,"○","○","○",{"$nulls":6},"製品評価技術基盤機構（東京都）"]